bitfinex-derivatives/quotes_BTCF0:USTF0_20250406
["timestamp","ask_amount","ask_price","bid_price","bid_amount"]
[1743936091150,0.14390093,82873.0,82872.0,0.52839089]
[1743936091354,0.00058106,82876.0,82875.0,0.0845051]
[1743936091654,0.00058106,82876.0,82875.0,0.10270013]
[1743936092256,0.00058106,82876.0,82875.0,0.19780013]
[1743936092639,0.25358106,82876.0,82875.0,0.19780013]
[1743936092843,0.00358106,82876.0,82875.0,0.19780013]
[1743936093040,0.0307,82881.0,82880.0,0.0845]
[1743936093244,0.0315,82881.0,82880.0,0.46349201]
[1743936093852,0.3015,82881.0,82880.0,0.46349201]
[1743936094155,0.1315,82881.0,82880.0,0.46349201]
[1743936094345,0.0315,82881.0,82880.0,0.46349201]
[1743936094755,0.0475439,82881.0,82880.0,0.46349201]
[1743936095357,0.2975439,82881.0,82880.0,0.46349201]
[1743936095557,0.3075439,82881.0,82880.0,0.46349201]
[1743936095747,0.0475439,82881.0,82880.0,0.46349201]
[1743936096146,0.3075439,82881.0,82880.0,0.46349201]
[1743936096354,0.3275439,82881.0,82880.0,0.46349201]
[1743936096751,0.3275439,82881.0,82880.0,0.46355618]
[1743936097056,0.2775439,82881.0,82880.0,0.46355618]
[1743936097248,0.3075439,82881.0,82880.0,0.46355618]
[1743936097450,0.3275439,82881.0,82880.0,0.46355618]
[1743936097953,0.2775439,82881.0,82880.0,0.46355618]
[1743936098655,0.3275439,82881.0,82880.0,0.46357567]
[1743936098851,0.2875439,82881.0,82880.0,0.46357567]
[1743936099356,0.2775439,82881.0,82880.0,0.46357567]
[1743936099559,0.2975439,82881.0,82880.0,0.46357567]
[1743936100457,0.3275439,82881.0,82880.0,0.46357567]
[1743936100850,0.3175439,82881.0,82880.0,0.46357567]
[1743936101051,0.3493439,82881.0,82880.0,0.46357567]
[1743936101451,0.6293439,82881.0,82880.0,0.46357567]
[1743936101859,0.3093439,82881.0,82880.0,0.46357567]
[1743936103165,0.3938428,82881.0,82880.0,0.46357567]
[1743936103354,0.5038428,82881.0,82880.0,0.46357567]
[1743936103756,0.3938428,82881.0,82880.0,0.46357567]
[1743936104059,0.5430428,82881.0,82880.0,0.37907567]
[1743936104262,0.8030428,82881.0,82880.0,0.37907567]
[1743936104455,0.8030428,82881.0,82880.0,0.46357567]
[1743936104655,0.3930428,82881.0,82880.0,0.46357567]
[1743936104861,0.6330428,82881.0,82880.0,0.46357567]
[1743936105162,0.6736828,82881.0,82880.0,0.46357567]
[1743936105362,0.6536828,82881.0,82880.0,0.46357567]
[1743936105554,0.6436828,82881.0,82880.0,0.46357567]
[1743936106852,0.6436828,82881.0,82880.0,0.37907567]
[1743936108261,0.6436828,82881.0,82880.0,0.37883775]
[1743936108762,0.6436828,82881.0,82880.0,0.01803775]
[1743936108964,0.6436828,82881.0,82880.0,0.01723775]
[1743936111566,0.6736828,82881.0,82880.0,0.01723775]
[1743936113268,0.0845,82880.0,82879.0,8e-05]
[1743936113469,0.65662,82880.0,82879.0,0.01741031]
[1743936113660,0.72152,82880.0,82879.0,0.01741031]
[1743936113966,0.75402,82880.0,82879.0,0.01741031]
[1743936116562,0.73402,82880.0,82879.0,0.01741031]
[1743936116768,0.46402,82880.0,82879.0,0.01741031]
[1743936116969,0.74402,82880.0,82879.0,0.01741031]
[1743936117270,0.69402,82880.0,82879.0,0.01741031]
[1743936117573,0.70402,82880.0,82879.0,0.01741031]
[1743936117963,0.56402,82880.0,82879.0,0.01741031]
[1743936118665,0.71402,82880.0,82879.0,0.01741031]
[1743936119071,0.72402,82880.0,82879.0,0.01741031]
[1743936119569,0.75402,82880.0,82879.0,0.01741031]
[1743936120069,0.46402,82880.0,82879.0,0.01741031]
[1743936120264,0.69402,82880.0,82879.0,0.01741031]
[1743936120463,0.69402,82880.0,82879.0,0.01715135]
[1743936121584,0.71402,82880.0,82879.0,0.01715135]
[1743936121867,0.46402,82880.0,82879.0,0.01715135]
[1743936122071,0.71402,82880.0,82879.0,0.01715135]
[1743936123567,0.71402,82880.0,82879.0,0.01710957]
[1743936125573,0.74402,82880.0,82879.0,0.01710957]
[1743936125871,0.71402,82880.0,82879.0,0.01710957]
[1743936126967,0.70402,82880.0,82879.0,0.01710957]
[1743936127164,0.73402,82880.0,82879.0,0.01710957]
[1743936127359,0.57402,82880.0,82879.0,0.01707536]
[1743936128081,0.56402,82880.0,82879.0,0.01707536]
[1743936128576,0.46402,82880.0,82879.0,0.01707536]
[1743936128872,0.56402,82880.0,82879.0,0.01787536]
[1743936129074,0.69402,82880.0,82879.0,0.01707536]
[1743936129281,0.46402,82880.0,82879.0,0.01707536]
[1743936129478,0.57402,82880.0,82879.0,0.01795536]
[1743936129662,0.57402,82880.0,82879.0,0.01707536]
[1743936130370,0.70402,82880.0,82879.0,0.01707536]
[1743936131273,0.70402,82880.0,82879.0,0.01787536]
[1743936131472,0.70402,82880.0,82879.0,0.01703905]
[1743936131976,0.65258,82880.0,82879.0,0.01703905]
[1743936132273,0.70402,82880.0,82879.0,0.01703905]
[1743936133772,0.084501,82879.0,82878.0,0.02096756]
[1743936133969,0.0845071,82873.0,82870.0,0.3608]
[1743936134169,0.0845071,82873.0,82872.0,0.25037257]
[1743936134170,0.6353071,82873.0,82872.0,0.25037257]
[1743936134369,0.6351871,82873.0,82872.0,0.25037257]
[1743936134571,0.4186871,82873.0,82872.0,0.25037257]
[1743936134875,0.6486871,82873.0,82872.0,0.25037257]
[1743936135377,0.6786871,82873.0,82872.0,0.25037257]
[1743936135777,0.4186871,82873.0,82872.0,0.25037257]
[1743936135981,0.6986871,82873.0,82872.0,0.25037257]
[1743936136279,0.4186871,82873.0,82872.0,0.25037257]
[1743936136472,0.5186871,82873.0,82872.0,0.0334]
[1743936137079,0.6786871,82873.0,82872.0,0.0334]
[1743936137482,0.6886871,82873.0,82872.0,0.0334]
[1743936137674,0.5286871,82873.0,82872.0,0.0334]
[1743936137876,0.6986871,82873.0,82872.0,0.0334]
[1743936138479,0.5586871,82873.0,82872.0,0.0334]
[1743936138984,0.6786871,82873.0,82872.0,0.0008]
[1743936139183,0.7093871,82873.0,82872.0,0.0008]
[1743936140477,0.0845112,82869.0,82868.0,0.28946394]
[1743936140781,0.6345112,82869.0,82868.0,0.28946394]
[1743936140982,0.6975112,82869.0,82868.0,0.28946394]
[1743936141569,0.6975112,82869.0,82868.0,0.001]
[1743936143081,0.6975112,82869.0,82868.0,0.002]
[1743936143677,0.6975112,82869.0,82868.0,0.0327]
[1743936143978,0.6975112,82869.0,82867.0,0.36098106]
[1743936144175,0.0845132,82867.0,82866.0,0.0499894]
[1743936144377,0.5745132,82867.0,82866.0,0.0499894]
[1743936144579,0.6386132,82867.0,82866.0,0.0499894]
[1743936144990,0.6392932,82867.0,82866.0,0.0499894]
[1743936145777,0.6392932,82867.0,82866.0,0.06681756]
[1743936145978,0.6392932,82867.0,82866.0,0.06981756]
[1743936146580,0.6392932,82867.0,82866.0,0.01982816]
[1743936147487,0.6392932,82867.0,82866.0,0.02054816]
[1743936150793,0.6392932,82867.0,82866.0,0.02050816]
[1743936164708,0.6392932,82867.0,82866.0,0.02052967]
[1743936165595,0.6392932,82867.0,82866.0,0.01984967]
[1743936167011,0.3792932,82867.0,82866.0,0.01984967]
[1743936167209,0.3792932,82867.0,82866.0,0.02048967]
[1743936168216,0.3472932,82867.0,82866.0,0.10500387]
[1743936168414,0.6686932,82867.0,82866.0,0.10500387]
[1743936168613,0.6586932,82867.0,82866.0,0.02048967]
[1743936168804,0.6786932,82867.0,82866.0,0.10500387]
[1743936169310,0.6386932,82867.0,82866.0,0.10518203]
[1743936170209,0.4986932,82867.0,82866.0,0.10518203]
[1743936170419,0.6486932,82867.0,82866.0,0.10518203]
[1743936170606,0.3986932,82867.0,82866.0,0.02066783]
[1743936170807,0.6386932,82867.0,82866.0,0.02066783]
[1743936171014,0.7014932,82867.0,82866.0,0.02002783]
[1743936171314,0.6614932,82867.0,82866.0,0.02006065]
[1743936171703,0.7014932,82867.0,82866.0,0.02006065]
[1743936171907,0.6714932,82867.0,82866.0,0.02006065]
[1743936172209,0.5414932,82867.0,82866.0,0.02006065]
[1743936172409,0.6714932,82867.0,82866.0,0.02006065]
[1743936173315,0.7014932,82867.0,82866.0,0.23723341]
[1743936174109,0.4314932,82867.0,82866.0,0.23723341]
[1743936174307,0.6714932,82867.0,82866.0,0.23791341]
[1743936174507,0.6714932,82867.0,82866.0,0.23723341]
[1743936176119,0.6714932,82867.0,82866.0,0.02070065]
[1743936176713,0.6814932,82867.0,82866.0,0.02070065]
[1743936178416,0.6814932,82867.0,82866.0,0.00364]
[1743936178622,0.6814932,82867.0,82866.0,0.02062461]
[1743936179012,0.6814932,82867.0,82866.0,0.01998461]
[1743936179908,1.1862302,82867.0,82866.0,0.02062461]
[1743936180112,1.1862302,82867.0,82866.0,0.02070461]
[1743936180312,1.1862302,82867.0,82866.0,0.01998461]
[1743936180914,1.2262302,82867.0,82866.0,0.01998461]
[1743936181115,1.1762302,82867.0,82866.0,0.01998461]
[1743936184124,0.9362302,82867.0,82866.0,0.01998461]
[1743936184325,1.0362302,82867.0,82866.0,0.01998461]
[1743936184831,1.2162302,82867.0,82866.0,0.01998461]
[1743936185129,0.8554302,82867.0,82866.0,0.01998461]
[1743936185331,1.2162302,82867.0,82866.0,0.02062461]
[1743936185630,1.2162302,82867.0,82866.0,0.01998461]
[1743936185844,1.1862302,82867.0,82866.0,0.01998461]
[1743936187023,1.2262302,82867.0,82866.0,0.01978542]
[1743936187632,1.1962302,82867.0,82866.0,0.01978542]
[1743936188333,1.0522932,82867.0,82866.0,0.01978542]
[1743936188626,0.7922932,82867.0,82866.0,0.01978542]
[1743936188837,0.8922932,82867.0,82866.0,0.02046542]
[1743936189131,0.8922932,82867.0,82866.0,0.01978542]
[1743936189721,0.7922932,82867.0,82866.0,0.01978542]
[1743936189927,1.0422932,82867.0,82866.0,0.02042542]
[1743936190130,1.0422932,82867.0,82866.0,0.01978542]
[1743936190733,1.0322932,82867.0,82866.0,0.01978542]
[1743936192531,0.7922932,82867.0,82866.0,0.01978542]
[1743936192735,1.0522932,82867.0,82866.0,0.01978542]
[1743936193232,0.7922932,82867.0,82866.0,0.01978542]
[1743936193435,0.8922932,82867.0,82866.0,0.01978542]
[1743936194335,0.8922932,82867.0,82866.0,0.01966802]
[1743936195336,0.9022932,82867.0,82866.0,0.01966802]
[1743936195635,0.9022932,82867.0,82866.0,0.003]
[1743936198239,1.0522932,82867.0,82866.0,0.003]
[1743936200341,1.0722932,82867.0,82866.0,0.003]
[1743936201241,0.9022932,82867.0,82866.0,0.003]
[1743936202239,1.0222932,82867.0,82866.0,0.0331]
[1743936202441,1.0722932,82867.0,82866.0,0.0331]
[1743936202639,1.0722932,82867.0,82866.0,0.04975835]
[1743936204336,1.0722932,82867.0,82866.0,0.04977887]
[1743936204542,1.0722932,82867.0,82866.0,0.08137887]
[1743936206947,1.0822932,82867.0,82866.0,0.08137887]
[1743936207239,1.0294932,82867.0,82866.0,0.08137887]
[1743936207640,0.9894932,82867.0,82866.0,0.08201887]
[1743936208449,0.8494932,82867.0,82866.0,0.08201887]
[1743936209144,1.0094932,82867.0,82866.0,0.08201887]
[1743936209645,1.0094932,82867.0,82866.0,0.08137887]
[1743936210645,1.0094932,82867.0,82866.0,0.0647]
[1743936210836,0.7907932,82867.0,82866.0,0.0647]
[1743936211146,0.8807932,82867.0,82866.0,0.06542]
[1743936211443,1.0807932,82867.0,82866.0,0.06542]
[1743936211636,1.0807932,82867.0,82866.0,0.08208135]
[1743936212140,0.7907932,82867.0,82866.0,0.08208135]
[1743936212345,1.0707932,82867.0,82866.0,0.08208135]
[1743936212738,1.0707932,82867.0,82866.0,0.08208147]
[1743936213338,1.0394932,82867.0,82866.0,0.08208147]
[1743936213538,0.7594932,82867.0,82866.0,0.08208147]
[1743936213951,0.8594932,82867.0,82866.0,0.08208147]
[1743936215351,0.7594932,82867.0,82866.0,0.08208147]
[1743936215545,1.16457,82867.0,82866.0,0.08208147]
[1743936215749,1.16457,82867.0,82866.0,0.0647]
[1743936216152,1.02457,82867.0,82866.0,0.0647]
[1743936216343,1.03457,82867.0,82866.0,0.06546]
[1743936216544,0.67377,82867.0,82866.0,0.06546]
[1743936216743,1.03457,82867.0,82866.0,0.0821378]
[1743936216951,0.93457,82867.0,82866.0,0.0821378]
[1743936217152,1.17457,82867.0,82866.0,0.0821378]
[1743936217351,1.20457,82867.0,82866.0,0.0813778]
[1743936217646,1.20457,82867.0,82866.0,0.0820578]
[1743936217851,1.20457,82867.0,82866.0,0.0813778]
[1743936217852,1.16457,82867.0,82866.0,0.0813778]
[1743936218052,1.20457,82867.0,82866.0,0.0813778]
[1743936218654,0.84377,82867.0,82866.0,0.0813778]
[1743936218865,1.20457,82867.0,82866.0,0.0820978]
[1743936219060,1.20457,82867.0,82866.0,0.0813778]
[1743936220458,1.20457,82867.0,82866.0,0.0497778]
[1743936220856,1.20457,82867.0,82866.0,0.0331]
[1743936222057,1.0604932,82867.0,82866.0,0.0331]
[1743936222454,1.0604932,82867.0,82866.0,0.03374]
[1743936223459,1.0604932,82867.0,82866.0,0.06674]
[1743936223761,1.0604932,82867.0,82866.0,0.05040822]
[1743936223950,1.0090932,82867.0,82866.0,0.04976822]
[1743936224153,1.0604932,82867.0,82866.0,0.04976822]
[1743936224751,1.0604932,82867.0,82866.0,0.03374]
[1743936225662,1.0604932,82867.0,82866.0,0.06674]
[1743936225852,1.0604932,82867.0,82866.0,0.08341387]
[1743936226557,1.0604932,82867.0,82866.0,0.08277387]
[1743936227251,1.0604932,82867.0,82866.0,0.08349387]
[1743936227454,0.7594932,82867.0,82866.0,0.08349387]
[1743936227664,0.8594932,82867.0,82866.0,0.08349387]
[1743936227964,0.9994932,82867.0,82866.0,0.08349387]
[1743936228563,1.0094932,82867.0,82866.0,0.08349387]
[1743936228751,1.0695932,82867.0,82866.0,0.08349387]
[1743936228958,1.0295932,82867.0,82866.0,0.08349387]
[1743936229264,1.0295932,82867.0,82866.0,0.08349477]
[1743936230163,0.8995932,82867.0,82866.0,0.08349477]
[1743936230863,1.04366102,82867.0,82866.0,0.08277477]
[1743936231063,1.04366102,82867.0,82866.0,0.08349682]
[1743936233262,1.03366102,82867.0,82866.0,0.08349682]
[1743936233567,0.93366102,82867.0,82866.0,0.08349682]
[1743936233759,1.03366102,82867.0,82866.0,0.08349682]
[1743936233958,1.16366102,82867.0,82866.0,0.08349682]
[1743936234158,1.16366102,82867.0,82866.0,0.02039682]
[1743936234369,1.19486102,82867.0,82866.0,0.01975682]
[1743936234958,0.0422581,82864.0,82857.0,0.0091649]
[1743936235266,0.0845295,82851.0,82850.0,0.3558384]
[1743936235467,1.0074095,82851.0,82850.0,0.3564784]
[1743936235767,0.9674095,82851.0,82850.0,0.3564784]
[1743936236067,1.0074095,82851.0,82850.0,0.3564784]
[1743936236371,1.0307095,82851.0,82850.0,0.3564784]
[1743936239668,1.0307095,82851.0,82850.0,0.00064]
[1743936239865,0.0845306,82850.0,82849.0,8e-05]
[1743936240161,0.6152106,82850.0,82849.0,8e-05]
[1743936240366,0.6783106,82850.0,82849.0,8e-05]
[1743936241167,0.6483106,82850.0,82849.0,8e-05]
[1743936241676,0.6997106,82850.0,82849.0,8e-05]
[1743936245563,0.7397106,82850.0,82849.0,8e-05]
[1743936247167,0.7397106,82850.0,82849.0,0.01671284]
[1743936248667,0.4597106,82850.0,82849.0,0.01671284]
[1743936248879,0.7397106,82850.0,82849.0,0.01671284]
[1743936249564,0.4597106,82850.0,82849.0,0.01671284]
[1743936249760,0.5597106,82850.0,82849.0,0.01671284]
[1743936250375,0.5597106,82850.0,82849.0,0.01673891]
[1743936251669,0.66739018,82850.0,82849.0,0.01673891]
[1743936252577,1.02819018,82850.0,82849.0,0.01673891]
[1743936253667,0.87679018,82850.0,82849.0,0.01673891]
[1743936253868,1.16819018,82850.0,82849.0,0.01673891]
[1743936254069,1.16819018,82850.0,82849.0,0.01674486]
[1743936254969,0.0845377,82843.0,82842.0,0.00026106]
[1743936255170,0.9560177,82843.0,82842.0,0.01687444]
[1743936255370,1.0545177,82843.0,82842.0,0.01679444]
[1743936255875,1.0545177,82843.0,82842.0,0.00018106]
[1743936260581,1.0945177,82843.0,82842.0,0.00018106]
[1743936260981,1.0645177,82843.0,82842.0,0.00018106]
[1743936262379,1.0845177,82843.0,82842.0,0.00018106]
[1743936263085,1.0514177,82843.0,82842.0,0.00018106]
[1743936263583,1.0514177,82843.0,82842.0,0.06298106]
[1743936264082,1.0193177,82843.0,82842.0,0.06298106]
[1743936265885,1.0526177,82843.0,82842.0,0.06298106]
[1743936267578,1.0526177,82843.0,82842.0,0.00018106]
[1743936271789,1.0326177,82843.0,82842.0,0.00018106]
[1743936272383,0.8826177,82843.0,82842.0,0.03248106]
[1743936272586,0.7826177,82843.0,82842.0,0.14835976]
[1743936272888,1.0607177,82843.0,82842.0,0.14771976]
[1743936276188,1.0607177,82843.0,82842.0,0.06318106]
[1743936276485,1.0929177,82843.0,82842.0,0.06318106]
[1743936278187,1.0415177,82843.0,82842.0,0.06318106]
[1743936278389,1.0929177,82843.0,82842.0,0.06318106]
[1743936279093,1.0093177,82843.0,82842.0,0.06318106]
[1743936279389,1.0607177,82843.0,82842.0,0.06318106]
[1743936280087,0.0422719,82837.0,82827.0,0.34341589]
[1743936280390,0.0845602,82821.0,82820.0,0.34009812]
[1743936280589,0.3545602,82821.0,82820.0,0.34081812]
[1743936280785,0.3861602,82821.0,82820.0,0.34081812]
[1743936280993,0.3861602,82821.0,82820.0,0.34009812]
[1743936281188,0.3861602,82821.0,82820.0,1.84009812]
[1743936281380,0.4045003,82821.0,82820.0,1.84009812]
[1743936281585,0.6645003,82821.0,82820.0,0.34009812]
[1743936281782,0.6776003,82821.0,82820.0,0.34009812]
[1743936282384,0.7076003,82821.0,82820.0,0.34009812]
[1743936282579,0.4376003,82821.0,82820.0,0.34009812]
[1743936282786,0.6976003,82821.0,82820.0,0.34609812]
[1743936282986,0.4376003,82821.0,82820.0,0.35209812]
[1743936283189,0.6976003,82821.0,82820.0,0.012]
[1743936283486,0.4376003,82821.0,82820.0,0.011]
[1743936283688,0.6776003,82821.0,82820.0,0.011]
[1743936284091,0.4376003,82821.0,82820.0,0.011]
[1743936284284,0.7076003,82821.0,82820.0,0.011]
[1743936284685,0.6676003,82821.0,82820.0,0.011]
[1743936284885,0.7076003,82821.0,82820.0,0.011]
[1743936285186,0.6676003,82821.0,82820.0,0.02768259]
[1743936285386,0.4376003,82821.0,82820.0,0.02768259]
[1743936285584,0.5376003,82821.0,82820.0,0.02768259]
[1743936285788,0.4376003,82821.0,82820.0,0.02168259]
[1743936285995,0.4382803,82821.0,82820.0,0.02732259]
[1743936286492,0.7182803,82821.0,82820.0,0.02732259]
[1743936286686,0.6882803,82821.0,82820.0,0.02732259]
[1743936286886,0.4382803,82821.0,82820.0,0.02732259]
[1743936287488,0.7990803,82821.0,82820.0,0.02732259]
[1743936287687,1.0390803,82821.0,82820.0,0.02732259]
[1743936287888,0.7990803,82821.0,82820.0,0.02732259]
[1743936288594,0.7990803,82821.0,82820.0,0.02733121]
[1743936288786,0.8990803,82821.0,82820.0,0.02533121]
[1743936288988,1.0490803,82821.0,82820.0,0.02533121]
[1743936289190,0.7990803,82821.0,82820.0,0.02533121]
[1743936289692,0.7990803,82821.0,82820.0,0.02233121]
[1743936289889,0.8990803,82821.0,82820.0,0.02233121]
[1743936290095,0.7990803,82821.0,82820.0,0.02233121]
[1743936290996,0.4382803,82821.0,82820.0,0.02233121]
[1743936291191,0.9090803,82821.0,82820.0,0.02233121]
[1743936291391,0.7990803,82821.0,82820.0,0.02233121]
[1743936291899,0.4382803,82821.0,82820.0,0.02233121]
[1743936292098,0.7990803,82821.0,82820.0,0.02233121]
[1743936292397,1.0490803,82821.0,82820.0,0.02233121]
[1743936292593,0.7990803,82821.0,82820.0,0.02233121]
[1743936293795,0.9090803,82821.0,82820.0,0.02233121]
[1743936293999,0.7990803,82821.0,82820.0,0.02233121]
[1743936294301,0.7990803,82821.0,82820.0,0.02236955]
[1743936295000,0.4382803,82821.0,82820.0,0.02236955]
[1743936295304,0.7990803,82821.0,82820.0,0.02236955]
[1743936295600,0.9090803,82821.0,82820.0,0.02236955]
[1743936295800,0.7990803,82821.0,82820.0,0.02236955]
[1743936295994,0.4382803,82821.0,82820.0,0.02236955]
[1743936296196,0.7990803,82821.0,82820.0,0.02236955]
[1743936298000,1.0390803,82821.0,82820.0,0.02236955]
[1743936298203,0.9090803,82821.0,82820.0,0.02236955]
[1743936298395,0.7990803,82821.0,82820.0,0.02236955]
[1743936298596,1.0790803,82821.0,82820.0,0.02236955]
[1743936298999,0.7990803,82821.0,82820.0,0.02236955]
[1743936299700,1.0490803,82821.0,82820.0,0.02236955]
[1743936299895,0.7990803,82821.0,82820.0,0.02236955]
[1743936300095,0.8990803,82821.0,82820.0,0.02236955]
[1743936300400,1.0390803,82821.0,82820.0,0.02236955]
[1743936300602,1.0690803,82821.0,82820.0,0.02236955]
[1743936300901,0.7990803,82821.0,82820.0,0.02236955]
[1743936301097,1.0690803,82821.0,82820.0,0.02236955]
[1743936305794,0.7082803,82821.0,82820.0,0.02236955]
[1743936305994,1.0690803,82821.0,82820.0,0.02236955]
[1743936307002,1.0690803,82821.0,82820.0,5e-08]
[1743936307203,1.0690803,82821.0,82815.0,0.00963793]
[1743936307204,0.0845653,82816.0,82815.0,0.00963793]
[1743936307403,0.0422836,82815.0,82812.0,0.00018106]
[1743936307602,0.0845683,82813.0,82812.0,0.00102106]
[1743936307902,0.35544831,82813.0,82812.0,0.00170106]
[1743936308100,0.35544831,82813.0,82812.0,1.50094106]
[1743936310000,0.35544831,82813.0,82812.0,1.50694106]
[1743936311005,0.35544831,82813.0,82812.0,1.51588271]
[1743936312792,0.60544831,82813.0,82812.0,0.01588271]
[1743936312996,0.35544831,82813.0,82812.0,0.01520271]
[1743936313509,0.58544831,82813.0,82812.0,1.51520271]
[1743936313806,0.59544831,82813.0,82812.0,1.51520271]
[1743936314605,0.35544831,82813.0,82812.0,1.51520271]
[1743936315005,0.35544831,82813.0,82812.0,1.51584271]
[1743936316005,0.58544831,82813.0,82812.0,1.51584271]
[1743936316207,0.63544831,82813.0,82812.0,1.51584271]
[1743936316408,0.62544831,82813.0,82812.0,1.51584271]
[1743936316599,0.63544831,82813.0,82812.0,1.51584271]
[1743936316798,0.41784831,82813.0,82812.0,1.51584271]
[1743936317508,0.38644831,82813.0,82812.0,1.51584271]
[1743936317703,0.38644831,82813.0,82812.0,1.60041201]
[1743936318106,0.38644831,82813.0,82812.0,1.65101201]
[1743936318497,0.41784831,82813.0,82812.0,1.51584271]
[1743936318693,0.69784831,82813.0,82812.0,1.51584271]
[1743936318900,0.68784831,82813.0,82812.0,1.51584271]
[1743936319107,0.68784831,82813.0,82812.0,1.53308124]
[1743936319307,0.41784831,82813.0,82812.0,1.53308124]
[1743936322709,0.68784831,82813.0,82812.0,1.53308124]
[1743936323409,0.69784831,82813.0,82812.0,0.03308124]
[1743936323608,0.69784831,82813.0,82812.0,0.03244124]
[1743936323802,0.41784831,82813.0,82812.0,1.53236124]
[1743936324305,0.51784831,82813.0,82812.0,1.53236124]
[1743936324510,0.64784831,82813.0,82812.0,1.53236124]
[1743936324703,0.66784831,82813.0,82812.0,0.02341959]
[1743936324904,0.52784831,82813.0,82812.0,0.02341959]
[1743936325405,0.52784831,82813.0,82812.0,0.02405959]
[1743936325912,0.88864831,82813.0,82812.0,0.02405959]
[1743936326421,0.88864831,82813.0,82812.0,0.02332273]
[1743936326805,0.88864831,82813.0,82812.0,0.02420273]
[1743936327811,0.88864831,82813.0,82812.0,0.02332273]
[1743936328006,0.88864831,82813.0,82812.0,0.02408273]
[1743936328202,1.04864831,82813.0,82812.0,0.02426713]
[1743936329005,0.77864831,82813.0,82812.0,0.02426713]
[1743936329207,1.01864831,82813.0,82812.0,0.02426713]
[1743936330211,0.77864831,82813.0,82812.0,0.02426713]
[1743936330415,1.06864831,82813.0,82812.0,0.02426713]
[1743936331709,1.03864831,82813.0,82812.0,0.02426713]
[1743936332416,1.05864831,82813.0,82812.0,0.02426713]
[1743936332616,1.03864831,82813.0,82812.0,0.02426713]
[1743936333715,1.03864831,82813.0,82812.0,0.02430667]
[1743936335113,1.10004831,82813.0,82812.0,0.02430667]
[1743936335310,1.11004831,82813.0,82812.0,0.02430667]
[1743936335510,1.11004831,82813.0,82812.0,0.02430402]
[1743936335706,1.06004831,82813.0,82812.0,0.02430402]
[1743936336416,0.83004831,82813.0,82812.0,0.02430402]
[1743936336615,1.09004831,82813.0,82812.0,0.02430402]
[1743936336819,1.12004831,82813.0,82812.0,0.02430402]
[1743936337430,1.12004831,82813.0,82812.0,0.02430865]
[1743936337613,0.83004831,82813.0,82812.0,0.02430865]
[1743936337814,0.93004831,82813.0,82812.0,0.02430865]
[1743936338120,0.85004831,82813.0,82812.0,0.02430865]
[1743936339120,0.85004831,82813.0,82812.0,0.04095126]
[1743936340619,0.85004831,82813.0,82812.0,0.02430865]
[1743936341221,0.48924831,82813.0,82812.0,0.02430865]
[1743936341521,0.85004831,82813.0,82812.0,0.02354865]
[1743936347924,0.48924831,82813.0,82812.0,0.02354865]
[1743936348125,0.85004831,82813.0,82812.0,0.02354865]
[1743936350626,0.48924831,82813.0,82812.0,0.02354865]
[1743936350921,0.85004831,82813.0,82812.0,0.02354865]
[1743936352728,0.99392476,82813.0,82812.0,0.02354865]
[1743936354724,0.99392476,82813.0,82812.0,0.01745865]
[1743936355028,0.0845704,82811.0,82810.0,2e-08]
[1743936355228,0.5954904,82811.0,82810.0,0.01740552]
[1743936355623,0.0422867,82809.0,82806.0,8e-05]
[1743936355817,0.0845745,82807.0,82806.0,0.00088]
[1743936356022,0.0845785,82803.0,82802.0,0.28932177]
[1743936356223,0.9753785,82803.0,82802.0,0.28844177]
[1743936356522,0.0845816,82800.0,82799.0,0.00018106]
[1743936356726,0.3870616,82800.0,82799.0,0.00090106]
[1743936356929,0.6370616,82800.0,82799.0,0.00090106]
[1743936357230,0.4970616,82800.0,82799.0,0.00090106]
[1743936357434,0.3870616,82800.0,82799.0,0.00090106]
[1743936357634,0.4870616,82800.0,82799.0,0.00090106]
[1743936357933,0.6570616,82800.0,82799.0,0.00090106]
[1743936358133,0.6570616,82800.0,82799.0,0.00690106]
[1743936358334,0.3870616,82800.0,82799.0,0.00690106]
[1743936358535,0.6670616,82800.0,82799.0,0.00690106]
[1743936359126,0.6170616,82800.0,82799.0,0.01290106]
[1743936359327,0.6570616,82800.0,82799.0,0.01290106]
[1743936359527,0.3870616,82800.0,82799.0,0.09748366]
[1743936359734,0.6570616,82800.0,82799.0,0.09748366]
[1743936360028,0.6670616,82800.0,82799.0,0.09748366]
[1743936360236,0.6570616,82800.0,82799.0,0.09748366]
[1743936360737,0.6570616,82800.0,82799.0,0.10645954]
[1743936361238,0.3870616,82800.0,82799.0,0.10645954]
[1743936361449,0.6370616,82800.0,82799.0,0.10645954]
[1743936361641,0.3870616,82800.0,82799.0,0.02187694]
[1743936361941,0.6370616,82800.0,82799.0,0.02187694]
[1743936362144,0.3870616,82800.0,82799.0,0.02187694]
[1743936362337,0.6670616,82800.0,82799.0,0.02187694]
[1743936362737,0.3870616,82800.0,82799.0,0.02187694]
[1743936363040,0.6370616,82800.0,82799.0,0.02187694]
[1743936363238,0.6470616,82800.0,82799.0,0.02187694]
[1743936363440,0.6370616,82800.0,82799.0,0.02187694]
[1743936363739,0.7449485,82800.0,82799.0,0.02187694]
[1743936363943,0.7349485,82800.0,82799.0,0.02187694]
[1743936364137,0.4949485,82800.0,82799.0,0.02187694]
[1743936364540,0.7549485,82800.0,82799.0,0.02187694]
[1743936364738,0.4949485,82800.0,82799.0,0.02187694]
[1743936365244,0.7449485,82800.0,82799.0,0.02187694]
[1743936365745,0.7649485,82800.0,82799.0,0.02187694]
[1743936365947,0.7349485,82800.0,82799.0,0.02187694]
[1743936366246,0.7549485,82800.0,82799.0,0.02187694]
[1743936366747,0.7349485,82800.0,82799.0,0.02187694]
[1743936367343,0.7749485,82800.0,82799.0,0.02187694]
[1743936367538,0.4949485,82800.0,82799.0,0.02187694]
[1743936367748,0.7349485,82800.0,82799.0,0.03879806]
[1743936367942,0.7549485,82800.0,82799.0,0.03879806]
[1743936368246,0.7349485,82800.0,82799.0,0.03879806]
[1743936368848,0.3870616,82800.0,82799.0,0.03879806]
[1743936369145,0.3870616,82800.0,82799.0,0.03879164]
[1743936369146,0.6170616,82800.0,82799.0,0.03879164]
[1743936369348,0.7298616,82800.0,82799.0,0.03879164]
[1743936369545,0.5498616,82800.0,82799.0,0.12337424]
[1743936370553,0.5498616,82800.0,82799.0,0.03879164]
[1743936370737,0.4498616,82800.0,82799.0,0.03279164]
[1743936370944,0.7198616,82800.0,82799.0,0.03579164]
[1743936371149,0.6798616,82800.0,82799.0,0.03279164]
[1743936371349,0.7298616,82800.0,82799.0,0.03279164]
[1743936371546,0.5598616,82800.0,82799.0,0.03279164]
[1743936371750,0.7198616,82800.0,82799.0,0.03278324]
[1743936372555,0.7098616,82800.0,82799.0,0.03278324]
[1743936372859,0.6898616,82800.0,82799.0,0.03278324]
[1743936373156,0.6798616,82800.0,82799.0,0.03278324]
[1743936373354,0.7298616,82800.0,82799.0,0.03278324]
[1743936373556,0.7298616,82800.0,82799.0,0.01587694]
[1743936373954,0.7098616,82800.0,82799.0,0.01587694]
[1743936374160,0.8177485,82800.0,82799.0,0.01587694]